fUST/lending_fUST_20250514
["ID","MTS","AMOUNT","RATE_DAILY","PERIOD"]
[360984882,1747182640798,-539.51,0.00013698,2]
[360984884,1747182640808,-400.0,0.00013698,2]
[360984886,1747182640818,-400.0,0.00013698,2]
[360984888,1747182640827,-400.0,0.00013698,2]
[360984890,1747182640837,-400.0,0.00013698,2]
[360984892,1747182640846,-408.12,0.00013698,2]
[360984894,1747182640856,-400.0,0.00013698,2]
[360984896,1747182640865,-309.89063897,0.00013698,2]
[360984898,1747182640875,-400.0,0.00013698,2]
[360984900,1747182640884,-400.0,0.00013698,2]
[360984902,1747182640893,-400.0,0.00013698,2]
[360984904,1747182640903,-400.0,0.00013698,2]
[360984906,1747182640912,-209.64504064,0.00013698,2]
[360984908,1747182640922,-400.0,0.00013698,2]
[360984910,1747182640931,-400.0,0.00013698,2]
[360984913,1747182640941,-322.87218082,0.00013698,2]
[360984915,1747182640951,-400.0,0.00013698,2]
[360984917,1747182640960,-299.19306426,0.00013698,2]
[360984919,1747182640970,-308.48559122,0.00013698,2]
[360984921,1747182640980,-400.0,0.00013698,2]
[360984923,1747182640989,-400.0,0.00013698,2]
[360984925,1747182640998,-403.26516946,0.00013698,2]
[360984927,1747182641008,-400.0,0.00013698,2]
[360984929,1747182641017,-400.0,0.00013698,2]
[360984931,1747182641027,-400.0,0.00013698,2]
[360984933,1747182641037,-400.0,0.00013698,2]
[360984935,1747182641046,-400.0,0.00013698,2]
[360984937,1747182641055,-400.0,0.00013698,2]
[360984939,1747182641064,-400.0,0.00013698,2]
[360984941,1747182641074,-400.0,0.00013698,2]
[360984943,1747182641084,-445.44778477,0.00013698,2]
[360984945,1747182641093,-401.68698194,0.00013698,2]
[360984947,1747182641102,-402.85015394,0.00013698,2]
[360984949,1747182641112,-409.2933375,0.00013698,2]
[360984951,1747182641121,-403.18260697,0.00013698,2]
[360984953,1747182641131,-400.0,0.00013698,2]
[360984955,1747182641140,-505.6826506,0.00013698,2]
[360984957,1747182641151,-400.0,0.00013698,2]
[360984959,1747182641160,-413.11324403,0.00013698,2]
[360984961,1747182641170,-400.0,0.00013698,2]
[360984963,1747182641180,-400.0,0.00013698,2]
[360984965,1747182641190,-413.64323504,0.00013698,2]
[360984966,1747182641199,-400.0,0.00013698,2]
[360984967,1747182641209,-400.0,0.00013698,2]
[360984968,1747182641219,-400.0,0.00013698,2]
[360984969,1747182641229,-503.28651076,0.00013698,2]
[360984970,1747182641239,-400.0,0.00013698,2]
[360984971,1747182641248,-328.02084634,0.00013698,2]
[360984972,1747182641258,-417.99448071,0.00013698,2]
[360984973,1747182641267,-400.0,0.00013698,2]
[360984974,1747182641277,-400.0,0.00013698,2]
[360984975,1747182641287,-400.0,0.00013698,2]
[360984976,1747182641302,-400.0,0.00013698,2]
[360984977,1747182641312,-400.0,0.00013698,2]
[360984978,1747182641322,-402.38972112,0.00013698,2]
[360984979,1747182641332,-400.0,0.00013698,2]
[360984980,1747182641343,-400.0,0.00013698,2]
[360984981,1747182641355,-400.0,0.00013698,2]
[360984982,1747182641364,-176.31086882,0.00013698,2]
[360984983,1747182641380,-56.16108367,0.00013698,2]
[360984985,1747182641391,-400.0,0.00013698,2]
[360984987,1747182641400,-400.0,0.00013698,2]
[360984989,1747182641410,-400.0,0.00013698,2]
[360984991,1747182641419,-290.62491687,0.00013698,2]
[360985510,1747182646328,-5000.0,0.00013561,2]
[360985513,1747182646339,-109.37508313,0.00013698,2]
[360985515,1747182646353,-247.96642624,0.00013698,2]
[360985517,1747182646363,-400.0,0.00013698,2]
[360985519,1747182646372,-515.1,0.00013698,2]
[360985521,1747182646382,-405.0376624,0.00013698,2]
[360985523,1747182646393,-500.0,0.00013698,2]
[360985525,1747182646403,-400.0,0.00013698,2]
[360985527,1747182646412,-400.0,0.00013698,2]
[360985529,1747182646422,-225.39556561,0.00013698,2]
[360985531,1747182646434,-400.0,0.00013698,2]
[360985533,1747182646444,-400.0,0.00013698,2]
[360985535,1747182646454,-205.15851775,0.00013698,2]
[360985537,1747182646464,-405.05391411,0.00013698,2]
[360985540,1747182646474,-273.20431788,0.00013698,2]
[360985542,1747182646485,-400.0,0.00013698,2]
[360985544,1747182646495,-400.0,0.00013698,2]
[360985546,1747182646506,-402.63828677,0.00013698,2]
[360985548,1747182646516,-309.14728528,0.00013698,2]
[360985549,1747182646526,-400.0,0.00013698,2]
[360985550,1747182646536,-520.26972314,0.00013698,2]
[360985551,1747182646546,-400.0,0.00013698,2]
[360985552,1747182646556,-400.0,0.00013698,2]
[360985553,1747182646566,-776.29,0.00013698,2]
[360985554,1747182646576,-400.0,0.00013698,2]
[360985555,1747182646585,-400.0,0.00013698,2]
[360985556,1747182646595,-494.38,0.00013698,2]
[360985557,1747182646605,-400.0,0.00013698,2]
[360985558,1747182646618,-400.0,0.00013698,2]
[360985559,1747182646628,-400.0,0.00013698,2]
[360985560,1747182646638,-400.0,0.00013698,2]
[360985561,1747182646647,-400.0,0.00013698,2]
[360985562,1747182646657,-400.0,0.00013698,2]
[360985563,1747182646667,-400.0,0.00013698,2]
[360985564,1747182646677,-400.0,0.00013698,2]
[360985565,1747182646686,-400.0,0.00013698,2]
[360985566,1747182646695,-771.92,0.00013698,2]
[360985567,1747182646705,-400.0,0.00013698,2]
[360985568,1747182646714,-400.0,0.00013698,2]
[360985570,1747182646724,-400.0,0.00013698,2]
[360985572,1747182646735,-412.74,0.00013698,2]
[360985574,1747182646745,-400.0,0.00013698,2]
[360985576,1747182646755,-406.107487,0.00013698,2]
[360985578,1747182646765,-400.0,0.00013698,2]
[360985580,1747182646774,-400.0,0.00013698,2]
[360985582,1747182646784,-400.0,0.00013698,2]
[360985584,1747182646794,-400.0,0.00013698,2]
[360985586,1747182646804,-400.0,0.00013698,2]
[360985588,1747182646813,-400.0,0.00013698,2]
[360985590,1747182646823,-428.97,0.00013698,2]
[360985592,1747182646832,-400.0,0.00013698,2]
[360985594,1747182646842,-400.0,0.00013698,2]
[360985597,1747182646852,-400.0,0.00013698,2]
[360985599,1747182646861,-431.84,0.00013698,2]
[360985601,1747182646870,-591.14,0.00013698,2]
[360985603,1747182646881,-400.0,0.00013698,2]
[360985605,1747182646890,-400.0,0.00013698,2]
[360985607,1747182646899,-440.14,0.00013698,2]
[360985609,1747182646909,-400.0,0.00013698,2]
[360985611,1747182646918,-400.0,0.00013698,2]
[360985613,1747182646927,-400.0,0.00013698,2]
[360985615,1747182646937,-400.0,0.00013698,2]
[360985617,1747182646947,-400.0,0.00013698,2]
[360985619,1747182646957,-400.0,0.00013698,2]
[360985621,1747182646967,-400.0,0.00013698,2]
[360985623,1747182646977,-400.0,0.00013698,2]
[360985625,1747182646989,-400.0,0.00013698,2]
[360985627,1747182646998,-400.0,0.00013698,2]
[360985629,1747182647008,-400.0,0.00013698,2]
[360985631,1747182647018,-400.0,0.00013698,2]
[360985633,1747182647028,-400.0,0.00013698,2]
[360985635,1747182647037,-423.78,0.00013698,2]
[360985637,1747182647047,-400.0,0.00013698,2]
[360985639,1747182647057,-400.0,0.00013698,2]
[360985641,1747182647066,-400.0,0.00013698,2]
[360985643,1747182647076,-400.0,0.00013698,2]
[360985646,1747182647086,-900.34,0.00013698,2]
[360985648,1747182647095,-400.0,0.00013698,2]
[360985650,1747182647105,-820.3,0.00013698,2]
[360985652,1747182647115,-651.67,0.00013698,2]
[360985654,1747182647124,-869.21,0.00013698,2]
[360985656,1747182647134,-415.73,0.00013698,2]
[360985658,1747182647143,-400.0,0.00013698,2]
[360985660,1747182647153,-400.0,0.00013698,2]
[360985662,1747182647163,-965.6,0.00013698,2]
[360985664,1747182647173,-494.7,0.00013698,2]
[360985666,1747182647183,-954.1,0.00013698,2]
[360985668,1747182647194,-400.0,0.00013698,2]
[360985670,1747182647203,-400.0,0.00013698,2]
[360985673,1747182647213,-400.0,0.00013698,2]
[360985675,1747182647223,-400.0,0.00013698,2]
[360985677,1747182647232,-400.0,0.00013698,2]
[360985679,1747182647245,-9081.29,0.00013698,2]
[360985681,1747182647255,-2095.59,0.00013698,2]
[360985683,1747182647264,-400.0,0.00013698,2]
[360985685,1747182647275,-400.0,0.00013698,2]
[360985687,1747182647285,-602.95,0.00013698,2]
[360985689,1747182647294,-400.0,0.00013698,2]
[360985691,1747182647303,-400.0,0.00013698,2]
[360985693,1747182647314,-400.0,0.00013698,2]
[360985695,1747182647323,-665.33,0.00013698,2]
[360985697,1747182647333,-400.0,0.00013698,2]
[360985699,1747182647342,-400.0,0.00013698,2]
[360985701,1747182647354,-637.13,0.00013698,2]
[360985703,1747182647363,-400.0,0.00013698,2]
[360985705,1747182647373,-464.56,0.00013698,2]
[360985707,1747182647383,-963.22,0.00013698,2]
[360985709,1747182647393,-400.0,0.00013698,2]
[360985711,1747182647403,-400.0,0.00013698,2]
[360985713,1747182647412,-438.17,0.00013698,2]
[360985715,1747182647422,-400.0,0.00013698,2]
[360985717,1747182647434,-180.72351325,0.00013698,2]
[360985719,1747182647444,-1369.88,0.00013698,2]
[360985722,1747182647454,-956.75,0.00013698,2]
[360985724,1747182647464,-400.0,0.00013698,2]
[360985726,1747182647473,-1795.01,0.00013698,2]
[360985728,1747182647487,-400.0,0.00013698,2]
[360985730,1747182647496,-400.0,0.00013698,2]
[360985732,1747182647506,-400.0,0.00013698,2]
[360985734,1747182647516,-400.0,0.00013698,2]
[360985736,1747182647525,-400.0,0.00013698,2]
[360985738,1747182647535,-400.0,0.00013698,2]
[360985740,1747182647545,-400.0,0.00013698,2]
[360985742,1747182647555,-400.0,0.00013698,2]
[360985744,1747182647565,-400.0,0.00013698,2]
[360985746,1747182647574,-400.0,0.00013698,2]
[360985748,1747182647584,-675.97,0.00013698,2]
[360985750,1747182647593,-400.0,0.00013698,2]
[360985752,1747182647603,-463.47,0.00013698,2]
[360985754,1747182647612,-479.59,0.00013698,2]
[360985756,1747182647622,-635.92,0.00013698,2]
[360985758,1747182647631,-477.84,0.00013698,2]
[360985760,1747182647641,-400.0,0.00013698,2]
[360985762,1747182647650,-2627.02,0.00013698,2]
[360985764,1747182647660,-400.0,0.00013698,2]
[360985766,1747182647670,-737.45,0.00013698,2]
[360985769,1747182647680,-1003.24,0.00013698,2]
[360985771,1747182647690,-400.0,0.00013698,2]
[360985773,1747182647700,-400.0,0.00013698,2]
[360985775,1747182647710,-211.43298111,0.00013698,2]
[360985777,1747182647719,-400.0,0.00013698,2]
[360985779,1747182647729,-557.49,0.00013698,2]
[360985781,1747182647740,-1106.94,0.00013698,2]
[360985783,1747182647749,-400.0,0.00013698,2]
[360985785,1747182647758,-400.0,0.00013698,2]
[360985787,1747182647770,-400.0,0.00013698,2]
[360985789,1747182647780,-1526.6,0.00013698,2]
[360985791,1747182647790,-400.0,0.00013698,2]
[360985793,1747182647799,-1521.86,0.00013698,2]
[360985795,1747182647809,-400.0,0.00013698,2]
[360985797,1747182647819,-600.34,0.00013698,2]
[360985799,1747182647829,-507.16,0.00013698,2]
[360985802,1747182647839,-299.42632518,0.00013698,2]
[360985804,1747182647849,-400.0,0.00013698,2]
[360985806,1747182647858,-400.0,0.00013698,2]
[360985808,1747182647867,-1308.11,0.00013698,2]
[360985810,1747182647877,-441.22,0.00013698,2]
[360985812,1747182647887,-516.27089739,0.00013698,2]
[360985814,1747182647896,-400.0,0.00013698,2]
[360985816,1747182647906,-400.0,0.00013698,2]
[360985818,1747182647915,-400.0,0.00013698,2]
[360985820,1747182647924,-400.0,0.00013698,2]
[360985822,1747182647934,-400.0,0.00013698,2]
[360985824,1747182647944,-400.0,0.00013698,2]
[360985826,1747182647954,-400.0,0.00013698,2]
[360985828,1747182647963,-400.0,0.00013698,2]
[360985830,1747182647973,-408.19,0.00013698,2]
[360985832,1747182647982,-400.0,0.00013698,2]
[360985834,1747182647993,-400.0,0.00013698,2]
[360985836,1747182648002,-437.04999108,0.00013698,2]
[360985838,1747182648012,-403.60232207,0.00013698,2]
[360985840,1747182648021,-875.92,0.00013698,2]
[360985842,1747182648032,-400.0,0.00013698,2]
[360985844,1747182648041,-1234.35,0.00013698,2]
[360985846,1747182648051,-400.0,0.00013698,2]
[360985848,1747182648061,-400.0,0.00013698,2]
[360985850,1747182648072,-400.0,0.00013698,2]
[360985853,1747182648082,-400.0,0.00013698,2]
[360985855,1747182648091,-1129.48,0.00013698,2]
[360985857,1747182648101,-400.0,0.00013698,2]
[360985859,1747182648111,-400.0,0.00013698,2]
[360985861,1747182648120,-400.0,0.00013698,2]
[360985863,1747182648130,-400.0,0.00013698,2]
[360985865,1747182648139,-433.99,0.00013698,2]
[360985867,1747182648149,-400.0,0.00013698,2]
[360985869,1747182648159,-400.0,0.00013698,2]
[360985871,1747182648169,-1223.09,0.00013698,2]
[360985873,1747182648179,-445.3,0.00013698,2]
[360985875,1747182648189,-1545.92,0.00013698,2]
[360985877,1747182648199,-400.0,0.00013698,2]
[360985879,1747182648209,-400.0,0.00013698,2]
[360985881,1747182648219,-735.55,0.00013698,2]
[360985883,1747182648228,-400.0,0.00013698,2]
[360985885,1747182648239,-770.1,0.00013698,2]
[360985887,1747182648249,-400.0,0.00013698,2]
[360985889,1747182648260,-875.39,0.00013698,2]
[360985892,1747182648271,-400.0,0.00013698,2]
[360985894,1747182648280,-2632.73,0.00013698,2]
[360985896,1747182648290,-1201.65,0.00013698,2]
[360985898,1747182648300,-400.0,0.00013698,2]
[360985899,1747182648309,-404.10905592,0.00013698,2]
[360985900,1747182648320,-400.0,0.00013698,2]
[360985901,1747182648330,-400.0,0.00013698,2]
[360985902,1747182648339,-400.0,0.00013698,2]
[360985903,1747182648351,-440.72,0.00013698,2]
[360985904,1747182648361,-473.98,0.00013698,2]
[360985905,1747182648372,-400.0,0.00013698,2]
[360985906,1747182648382,-702.64,0.00013698,2]
[360985907,1747182648393,-177.77777415,0.00013698,2]
[360985908,1747182648402,-6638.83723123,0.00013698,2]
[360985909,1747182648412,-742.646189,0.00013699,2]
[360985910,1747182648423,-500.0,0.00013699,2]
[360985911,1747182648433,-219.21012653,0.00013699,2]
[360985912,1747182648444,-306.968453,0.000139,2]
[360985913,1747182648454,-400.0,0.00013972,2]
[360985914,1747182648465,-400.0,0.00013972,2]
[360985915,1747182648474,-400.0,0.00013972,2]
[360985916,1747182648483,-156.02,0.00013972,2]
[360985917,1747182648494,-373.42,0.00013972,2]
[360985918,1747182648504,-294.7072742,0.00013972,2]
[360985919,1747182648514,-400.0,0.00013972,2]
[360985920,1747182648523,-408.12,0.00013972,2]
[360985921,1747182648533,-198.0,0.00013972,2]
[360985922,1747182648542,-290.21,0.00013972,2]
[360985923,1747182648552,-221.34,0.00013972,2]
[360985924,1747182648563,-400.0,0.00013972,2]
[360985925,1747182648572,-400.0,0.00013972,2]
[360985926,1747182648582,-499.39006624,0.00013972,2]
[360985927,1747182648591,-400.0,0.00013972,2]
[360985928,1747182648601,-402.49103288,0.00013972,2]
[360985929,1747182648611,-400.96455368,0.00013972,2]
[360985930,1747182648620,-400.0,0.00013972,2]
[360985931,1747182648629,-400.0,0.00013972,2]
[360985932,1747182648640,-400.0,0.00013972,2]
[360985933,1747182648651,-270.31952237,0.00013972,2]
[360985934,1747182648661,-400.0,0.00013972,2]
[360985935,1747182648670,-400.0,0.00013972,2]
[360985936,1747182648680,-400.0,0.00013972,2]
[360985937,1747182648690,-164.51199739,0.00013972,2]
[360985938,1747182648699,-413.81766193,0.00013972,2]
[360985939,1747182648709,-400.0,0.00013972,2]
[360985940,1747182648719,-408.90012799,0.00013972,2]
[360985941,1747182648729,-400.0,0.00013972,2]
[360985942,1747182648739,-400.0,0.00013972,2]
[360985943,1747182648749,-400.0,0.00013972,2]
[360985944,1747182648758,-400.0,0.00013972,2]
[360985945,1747182648768,-404.54151241,0.00013972,2]
[360985946,1747182648778,-400.0,0.00013972,2]
[360985947,1747182648788,-400.0,0.00013972,2]
[360985948,1747182648797,-400.0,0.00013972,2]
[360985949,1747182648807,-400.0,0.00013972,2]
[360985950,1747182648817,-400.0,0.00013972,2]
[360985951,1747182648827,-400.0,0.00013972,2]
[360985952,1747182648836,-400.0,0.00013972,2]
[360985953,1747182648845,-400.0,0.00013972,2]
[360985954,1747182648856,-776.29,0.00013972,2]
[360985955,1747182648866,-400.0,0.00013972,2]
[360985956,1747182648876,-400.0,0.00013972,2]
[360985957,1747182648885,-494.38,0.00013972,2]
[360985958,1747182648895,-400.0,0.00013972,2]
[360985959,1747182648905,-400.0,0.00013972,2]
[360985960,1747182648914,-400.0,0.00013972,2]
[360985961,1747182648924,-400.0,0.00013972,2]
[360985962,1747182648933,-400.0,0.00013972,2]
[360985963,1747182648943,-400.0,0.00013972,2]
[360985965,1747182648953,-771.92,0.00013972,2]
[360985966,1747182648962,-400.0,0.00013972,2]
[360985968,1747182648972,-400.0,0.00013972,2]
[360985969,1747182648982,-412.74,0.00013972,2]
[360985971,1747182648993,-400.0,0.00013972,2]
[360985973,1747182649002,-400.0,0.00013972,2]
[360985974,1747182649012,-400.0,0.00013972,2]
[360985975,1747182649022,-400.0,0.00013972,2]
[360985976,1747182649031,-428.97,0.00013972,2]
[360985977,1747182649040,-400.0,0.00013972,2]
[360985978,1747182649050,-400.0,0.00013972,2]
[360985979,1747182649059,-211.04,0.00013972,2]
[360985981,1747182649071,-591.14,0.00013972,2]
[360985983,1747182649080,-400.0,0.00013972,2]
[360985985,1747182649090,-400.0,0.00013972,2]
[360985986,1747182649100,-440.14,0.00013972,2]
[360985987,1747182649109,-400.0,0.00013972,2]
[360985988,1747182649119,-400.0,0.00013972,2]
[360985989,1747182649129,-400.0,0.00013972,2]
[360985990,1747182649138,-400.0,0.00013972,2]
[360985991,1747182649148,-400.0,0.00013972,2]
[360985992,1747182649158,-400.0,0.00013972,2]
[360985993,1747182649168,-400.0,0.00013972,2]
[360985994,1747182649178,-400.0,0.00013972,2]
[360985995,1747182649188,-400.0,0.00013972,2]
[360985996,1747182649199,-400.0,0.00013972,2]
[360985997,1747182649209,-400.0,0.00013972,2]
[360985998,1747182649220,-400.0,0.00013972,2]
[360985999,1747182649230,-423.78,0.00013972,2]
[360986000,1747182649240,-400.0,0.00013972,2]
[360986001,1747182649250,-400.0,0.00013972,2]
[360986002,1747182649260,-400.0,0.00013972,2]
[360986003,1747182649269,-900.34,0.00013972,2]
[360986004,1747182649279,-300.70609046,0.00013972,2]
[360986005,1747182649289,-820.3,0.00013972,2]
[360986006,1747182649299,-651.67,0.00013972,2]
[360986007,1747182649309,-869.21,0.00013972,2]
[360986008,1747182649319,-415.73,0.00013972,2]
[360986009,1747182649329,-400.0,0.00013972,2]
[360986010,1747182649339,-400.0,0.00013972,2]
[360986011,1747182649352,-965.6,0.00013972,2]
[360986012,1747182649361,-494.7,0.00013972,2]
[360986013,1747182649370,-954.1,0.00013972,2]
[360986014,1747182649380,-400.0,0.00013972,2]
[360986015,1747182649390,-400.0,0.00013972,2]
[360986016,1747182649400,-400.0,0.00013972,2]
[360986017,1747182649411,-400.0,0.00013972,2]
[360986018,1747182649420,-9081.29,0.00013972,2]
[360986019,1747182649433,-2095.59,0.00013972,2]
[360986020,1747182649442,-400.0,0.00013972,2]
[360986021,1747182649451,-400.0,0.00013972,2]
[360986022,1747182649461,-602.95,0.00013972,2]
[360986023,1747182649470,-400.0,0.00013972,2]
[360986024,1747182649479,-400.0,0.00013972,2]
[360986025,1747182649490,-400.0,0.00013972,2]
[360986026,1747182649499,-665.33,0.00013972,2]
[360986027,1747182649508,-400.0,0.00013972,2]
[360986028,1747182649517,-400.0,0.00013972,2]
[360986029,1747182649528,-637.13,0.00013972,2]
[360986030,1747182649537,-400.0,0.00013972,2]
[360986031,1747182649547,-464.56,0.00013972,2]
[360986032,1747182649556,-963.22,0.00013972,2]
[360986033,1747182649566,-400.0,0.00013972,2]
[360986034,1747182649576,-400.0,0.00013972,2]
[360986035,1747182649587,-438.17,0.00013972,2]
[360986036,1747182649596,-400.0,0.00013972,2]
[360986037,1747182649802,-1369.88,0.00013972,2]
[360986038,1747182649812,-956.75,0.00013972,2]
[360986039,1747182649823,-400.0,0.00013972,2]
[360986041,1747182649834,-1795.01,0.00013972,2]
[360986043,1747182649844,-400.0,0.00013972,2]
[360986045,1747182649853,-400.0,0.00013972,2]
[360986047,1747182649863,-400.0,0.00013972,2]
[360986049,1747182649872,-400.0,0.00013972,2]
[360986050,1747182649881,-400.0,0.00013972,2]
[360986051,1747182649892,-400.0,0.00013972,2]
[360986052,1747182649902,-400.0,0.00013972,2]
[360986053,1747182649912,-400.0,0.00013972,2]
[360986054,1747182649921,-675.97,0.00013972,2]
[360986055,1747182649930,-400.0,0.00013972,2]
[360986056,1747182649940,-463.47,0.00013972,2]
[360986057,1747182649949,-479.59,0.00013972,2]
[360986058,1747182649959,-635.92,0.00013972,2]
[360986059,1747182649968,-477.84,0.00013972,2]
[360986060,1747182649978,-400.0,0.00013972,2]
[360986061,1747182649988,-2627.02,0.00013972,2]
[360986063,1747182649998,-400.0,0.00013972,2]
[360986064,1747182650007,-737.45,0.00013972,2]
[360986065,1747182650016,-1003.24,0.00013972,2]
[360986066,1747182650026,-400.0,0.00013972,2]
[360986067,1747182650035,-557.49,0.00013972,2]
[360986068,1747182650044,-1106.94,0.00013972,2]
[360986069,1747182650054,-400.0,0.00013972,2]
[360986070,1747182650063,-400.0,0.00013972,2]
[360986072,1747182650072,-1526.6,0.00013972,2]
[360986073,1747182650081,-400.0,0.00013972,2]
[360986074,1747182650091,-1521.86,0.00013972,2]
[360986075,1747182650100,-600.34,0.00013972,2]
[360986076,1747182650110,-400.0,0.00013972,2]
[360986077,1747182650120,-327.83091128,0.00013972,2]
[360986079,1747182650129,-1308.11,0.00013972,2]
[360986080,1747182650138,-441.22,0.00013972,2]
[360986081,1747182650148,-400.0,0.00013972,2]
[360986082,1747182650159,-400.0,0.00013972,2]
[360986083,1747182650168,-400.0,0.00013972,2]
[360986084,1747182650177,-400.0,0.00013972,2]
[360986085,1747182650187,-408.19,0.00013972,2]
[360986086,1747182650197,-400.0,0.00013972,2]
[360986087,1747182650206,-875.92,0.00013972,2]
[360986088,1747182650216,-1234.35,0.00013972,2]
[360986089,1747182650225,-400.0,0.00013972,2]
[360986090,1747182650235,-400.0,0.00013972,2]
[360986091,1747182650247,-400.0,0.00013972,2]
[360986092,1747182650256,-400.0,0.00013972,2]
[360986093,1747182650265,-1129.48,0.00013972,2]
[360986094,1747182650275,-400.0,0.00013972,2]
[360986095,1747182650284,-400.0,0.00013972,2]
[360986096,1747182650293,-400.0,0.00013972,2]
[360986097,1747182650304,-1223.09,0.00013972,2]
[360986098,1747182650313,-445.3,0.00013972,2]
[360986099,1747182650324,-1545.92,0.00013972,2]
[360986100,1747182650334,-400.0,0.00013972,2]
[360986101,1747182650344,-400.0,0.00013972,2]
[360986102,1747182650356,-735.55,0.00013972,2]
[360986103,1747182650366,-770.1,0.00013972,2]
[360986104,1747182650375,-875.39,0.00013972,2]
[360986105,1747182650385,-2632.73,0.00013972,2]
[360986106,1747182650395,-1201.65,0.00013972,2]
[360986107,1747182650405,-400.0,0.00013972,2]
[360986108,1747182650414,-391.66050887,0.00013972,2]
[360986109,1747182650426,-400.0,0.00013972,2]
[360986110,1747182650436,-440.72,0.00013972,2]
[360986111,1747182650445,-473.98,0.00013972,2]
[360986112,1747182650455,-400.0,0.00013972,2]
[360986113,1747182650464,-702.64,0.00013972,2]
[360986114,1747182650474,-1000.0,0.00014,2]
[360986115,1747182650483,-1000.0,0.00014,2]
[360986116,1747182650495,-641.46334589,0.00014062,2]
[360986117,1747182650504,-175.7170149,0.000141,2]
[360986118,1747182650514,-160.0,0.00014237,2]
[360986119,1747182650523,-422.24190663,0.00014237,2]
[360986120,1747182650533,-160.0,0.00014237,2]
[360986121,1747182650543,-160.0,0.00014237,2]
[360986122,1747182650552,-160.0,0.00014237,2]
[360986123,1747182650562,-400.0,0.00014246,2]
[360986124,1747182650571,-400.0,0.00014246,2]
[360986125,1747182650581,-297.59115844,0.00014246,2]
[360986126,1747182650590,-400.0,0.00014246,2]
[360986127,1747182650600,-408.12,0.00014246,2]
[360986128,1747182650609,-400.0,0.00014246,2]
[360986129,1747182650619,-400.0,0.00014246,2]
[360986130,1747182650628,-400.0,0.00014246,2]
[360986131,1747182650638,-400.0,0.00014246,2]
[360986132,1747182650647,-472.6306215,0.00014246,2]
[360986133,1747182650657,-400.0,0.00014246,2]
[360986134,1747182650667,-400.0,0.00014246,2]
[360986135,1747182650676,-400.0,0.00014246,2]
[360986136,1747182650685,-400.0,0.00014246,2]
[360986137,1747182650694,-400.0,0.00014246,2]
[360986138,1747182650704,-400.0,0.00014246,2]
[360986139,1747182650713,-400.0,0.00014246,2]
[360986140,1747182650723,-400.0,0.00014246,2]
[360986141,1747182650733,-443.79639156,0.00014246,2]
[360986142,1747182650743,-776.29,0.00014246,2]
[360986143,1747182650753,-281.32169209,0.00014246,2]
[360986144,1747182650762,-406.33311062,0.00014246,2]
[360986145,1747182650772,-494.38,0.00014246,2]
[360986146,1747182650782,-400.0,0.00014246,2]
[360986147,1747182650792,-400.0,0.00014246,2]
[360986148,1747182650803,-400.0,0.00014246,2]
[360986149,1747182650812,-400.0,0.00014246,2]